Cogmind - Beta 13 @@@ ROGUE MODE // 2024.05.15 @ 22:20:27 Player: Grimalkyne Result: Destroyed by G-47 Trooper with Particle Gun Performance ------------- Evolutions (2) 1000 Regions Visited (5) 1000 Robots Destroyed (30) 150 Value Destroyed (655) 655 Prototype IDs (25) 500 Alien Tech Used (0) 0 Bonus (300) 300 TOTAL SCORE: 3605 Bonus ------- Aligned with FarCom 300 Cogmind --------- Core Integrity 0/550 Matter 213/300 Energy 100/100 System Corruption 0% Temperature Cool (27) Movement Core (400) Ox7 Location -8/Materials Parts ------- > --- POWER (1) -------- (None) > --- PROPULSION (4) --- (None) > --- UTILITY (4) ------ Large Storage Unit > --- WEAPON (2) ------- Mace > --- INVENTORY (15) --- Light Nuclear Core Flight Unit Flight Unit Flight Unit Flight Unit Flight Unit Medium Storage Unit Cloak of Protection Peak State ------------ > --- POWER ------------ Ion Engine > --- PROPULSION ------- Aluminum Leg Aluminum Leg > --- UTILITY ---------- Large Storage Unit Sensor Array > --- WEAPON ----------- Particle Gun Assault Rifle > --- INVENTORY -------- Ion Engine Light Ion Engine Aluminum Leg Flight Unit Flight Unit Flight Unit Small Storage Unit Medium Storage Unit Large Matter Pod Sensor Array Cloak of Protection Assault Rifle Light Assault Rifle Grenade Launcher Mace [Rating: 10] Favorites ----------- Power Ion Engine Engine Ion Engine Propulsion Aluminum Leg Leg Aluminum Leg Utility Large Storage Unit Device Sensor Array Storage Large Storage Unit Weapon Assault Rifle Energy Gun Particle Gun Ballistic Gun Assault Rifle Launcher Grenade Launcher Impact Weapon Mace Build | -11 -10 -10 -10 -9 -8 ------- Run | Yrd Mat Min Exi Min Mat Slots Evolved 4 | . . . . . 4 Power . | . . . . . . Propulsion 2 | . . . . . 2 Utility 2 | . . . . . 2 Weapon . | . . . . . . Parts Attached 33 | 6 11 4 . 4 8 Power 7 | 1 3 1 . . 2 Engine 7 | 1 3 1 . . 2 Core . | . . . . . . Reactor . | . . . . . . Propulsion 5 | 2 1 1 . 1 . Treads . | . . . . . . Leg 5 | 2 1 1 . 1 . Wheel . | . . . . . . Hover . | . . . . . . Flight . | . . . . . . Utility 8 | 1 5 . . 2 . Device 3 | . 2 . . 1 . Storage 5 | 1 3 . . 1 . Processor . | . . . . . . Hackware . | . . . . . . Protection . | . . . . . . Artifact . | . . . . . . Weapon 13 | 2 2 2 . 1 6 Energy Gun 2 | . . 1 . . 1 Energy Cannon . | . . . . . . Ballistic Gun 7 | 2 2 . . . 3 Ballistic Cannon . | . . . . . . Launcher 3 | . . 1 . 1 1 Special Weapon . | . . . . . . Impact Weapon 1 | . . . . . 1 Slashing Weapon . | . . . . . . Piercing Weapon . | . . . . . . Special Melee Weapon . | . . . . . . Unidentified Prototypes . | . . . . . . Parts Lost 14 | . 2 1 . . 11 Power 5 | . 2 . . . 3 Propulsion 3 | . . 1 . . 2 Utility 1 | . . . . . 1 Weapon 5 | . . . . . 5 Highest Loss Streak 9 | . 1 1 . . 9 To Critical Strikes . | . . . . . . Average Slot Usage (%) 95 | . 96 99 100 100 47 Engine 13 | . 13 14 14 14 7 Leg 26 | . 28 27 28 28 10 Device 12 | . 11 14 14 14 4 Storage 13 | . 14 14 14 14 9 Energy Gun 2 | . . 2 14 . 4 Ballistic Gun 20 | . 28 23 14 14 7 Launcher 4 | . . 2 . 14 2 Naked Turns . | . . . . . . Heaviest Build 31 | 11 29 31 31 31 31 Greatest Support 20 | 20 20 20 20 20 20 Greatest Overweight (x) 8 | . 1 1 1 1 8 Average Overweight (x) . | . . 1 1 1 2 Largest Inventory Capacity 25 | 8 25 15 15 15 15 Average Capacity 13 | 6 11 15 15 15 15 Most Carried 15 | 3 15 15 15 15 13 Average Carried 12 | 1 10 14 14 14 11 Final Capacity 15 | 8 15 15 15 15 15 Final Carried 15 | 3 15 15 15 13 8 Class Distribution -------------------- 34% | Scavenger-Mutant 33% | Mutant 31% | Skirmisher Dominant Class ---------------- Scavenger-Mutant | -10/Materials Scavenger-Mutant | -10/Mines Mutant | -10/Exiles Skirmisher | -9/Mines Mutant | -8/Materials Resources | -11 -10 -10 -10 -9 -8 ----------- Run | Yrd Mat Min Exi Min Mat Matter Collected 789 | 160 383 135 . 108 3 Remotely . | . . . . . . Salvage Created 729 | . 278 175 . 76 200 Parts 57 | . 23 16 . 10 8 Haulers Intercepted 2 | . 1 . . . 1 Recyclers Shooed 2 | . 1 . . . 1 Parts Field Recycled . | . . . . . . Retrieved Matter . | . . . . . . Parts Self-Destructed . | . . . . . . Prevented . | . . . . . . Kills | -11 -10 -10 -10 -9 -8 ------- Run | Yrd Mat Min Exi Min Mat Combat Hostiles Destroyed 25 | . 8 7 . 5 5 Guns 16 | . 8 4 . . 4 AOE 9 | . . 3 . 5 1 Classes Destroyed 6 | . 4 1 . 1 . Tunneler 1 | . . 1 . . . Hauler 2 | . 1 . . . 1 Watcher 2 | . 2 . . . . Swarmer 14 | . 6 3 . 3 2 Grunt 10 | . 2 4 . 1 3 Duelist 1 | . . . . 1 . Best Kill Streak 6 | . 3 6 . 3 4 Combat Bots Only 5 | . 3 5 . 3 3 Max Kills in Single Turn 2 | . 1 2 . 2 2 Gunslinging . | . . . . . . Exploded 2 | . . 1 . 2 1 Melee . | . . . . . . Uniques/NPCs Destroyed . | . . . . . . Combat | -11 -10 -10 -10 -9 -8 -------- Run | Yrd Mat Min Exi Min Mat Hostile Shots Fired 209 | . 49 34 . 7 119 Missed 53 | . 13 9 . 2 29 Damage Taken 2047 | . 302 318 . 65 1362 Core 709 | . 54 80 . 12 563 Absorbed by Shields . | . . . . . . Core Remaining (%) 70 | 100 . . . 41 . Volleys Fired 82 | . 40 16 . 3 23 Largest 2 | . 2 2 . 2 2 Hottest 95 | . 40 50 . 50 95 Shots Fired 159 | . 80 32 . 6 41 Gun 151 | . 80 28 . 3 40 Cannon . | . . . . . . Launcher 8 | . . 4 . 3 1 Special . | . . . . . . Kinetic 130 | . 80 28 . 3 19 Thermal 21 | . . . . . 21 Explosive 8 | . . 4 . 3 1 Electromagnetic . | . . . . . . Robot Hit Streak 11 | . 6 11 . 4 6 Robot Miss Streak 5 | . 5 3 . 1 5 Penetration Max . | . . . . . . Secondary Targets 1 | . . . . . 1 Max Gunslinging Chain 1 | . . . . . 1 Shots Hit Robots 98 | . 44 23 . 2 29 Core Hits 49 | . 17 15 . 3 14 Critical Kills . | . . . . . . Critical Parts Destroyed . | . . . . . . Critical Strikes . | . . . . . . Melee Attacks 4 | . . . . . 4 Impact 4 | . . . . . 4 Slashing . | . . . . . . Piercing . | . . . . . . Sneak Attacks . | . . . . . . Combat Hostiles . | . . . . . . Follow-up Attacks . | . . . . . . Damage Inflicted 1806 | . 472 455 . 298 581 Guns 1086 | . 472 240 . 11 363 Cannons . | . . . . . . Explosions 607 | . . 210 . 287 110 Melee 108 | . . . . . 108 Ramming 5 | . . 5 . . . Kinetic 875 | . 472 240 . 11 152 Thermal 211 | . . . . . 211 Explosive 607 | . . 210 . 287 110 Electromagnetic . | . . . . . . Impact 108 | . . . . . 108 Slashing . | . . . . . . Piercing . | . . . . . . Highest Corruption . | . . . . . . Average Corruption . | . . . . . . Corruption Purged . | . . . . . . Corruption Blocked . | . . . . . . Overload Shots . | . . . . . . Overflow Damage 41 | . . . . 41 . Projectiles . | . . . . . . Explosions 41 | . . . . 41 . Melee . | . . . . . . Knockbacks 2 | . . 1 . . 1 Impact 2 | . . 1 . . 1 Kinetic . | . . . . . . Secondary . | . . . . . . Self-Inflicted Damage 27 | . . . . 27 . Shots 1 | . . . . 1 . Rammed . | . . . . . . Targets Rammed 1 | . . 1 . . . Kicked 1 | . . 1 . . . Crushed . | . . . . . . Highest Temperature 222 | . 6 33 . . 222 Average Temperature 70 | . 3 12 . . 99 Received Heat Transfer 1005 | . 66 192 . . 747 Siege Activations . | . . . . . . Robots Corrupted . | . . . . . . Combat Hostiles . | . . . . . . Parts Fried . | . . . . . . Impact Corruptions . | . . . . . . Robots Melted . | . . . . . . Combat Hostiles . | . . . . . . Parts Melted . | . . . . . . Heat Transferred 481 | . . . . . 481 Parts Sabotaged . | . . . . . . Parts Stolen . | . . . . . . Parts Stripped . | . . . . . . Power Chain Reactions . | . . . . . . Alert | -11 -10 -10 -10 -9 -8 ------- Run | Yrd Mat Min Exi Min Mat Peak Influence 191 | . 164 191 . 95 88 Initial 22 | . . . . . 22 Average 51 | . 57 86 . 38 35 Maximum Alert Level . | . . . . . . Low Security (%) 100 | 100 100 100 . 100 100 Level 1 . | . . . . . . Level 2 . | . . . . . . Level 3 . | . . . . . . Level 4 . | . . . . . . Level 5 . | . . . . . . High Security . | . . . . . . Max Security . | . . . . . . Squads Dispatched 1 | . 1 . . . . Investigation 1 | . 1 . . . . Extermination . | . . . . . . Reinforcement . | . . . . . . Assault . | . . . . . . Garrison . | . . . . . . Intercept . | . . . . . . Searches Triggered . | . . . . . . Construction Impeded . | . . . . . . Haulers Reinforced . | . . . . . . Active Scanning Responses . | . . . . . . Cargo Convoy Interrupts . | . . . . . . Stealth | -11 -10 -10 -10 -9 -8 --------- Run | Yrd Mat Min Exi Min Mat Distress Signals 2 | . . . . . 2 Communications Jammed . | . . . . . . Distress Signals . | . . . . . . Times Spotted 31 | . 10 7 . 3 11 Peak Tracking Total 9 | . 5 3 . 3 9 Tactical Retreats . | . . . . . . Traps | -11 -10 -10 -10 -9 -8 ------- Run | Yrd Mat Min Exi Min Mat Traps Triggered 1 | . 1 . . . . Indirectly . | . . . . . . Trap Hack Attempts . | . . . . . . Triggered . | . . . . . . Disarmed . | . . . . . . Reprogrammed . | . . . . . . Reused . | . . . . . . Traps Extracted . | . . . . . . Installed . | . . . . . . Triggered . | . . . . . . Machines | -11 -10 -10 -10 -9 -8 ---------- Run | Yrd Mat Min Exi Min Mat Machines Disabled 2 | . 1 . . 1 . Max in Single Turn 1 | . 1 . . 1 . Machines Repaired . | . . . . . . Machines Dismantled . | . . . . . . Machines Sabotaged . | . . . . . . Overloaded Fab Kills . | . . . . . . Hacking | -11 -10 -10 -10 -9 -8 --------- Run | Yrd Mat Min Exi Min Mat Machines Accessed 5 | . 4 . 1 . . Terminals 4 | . 4 . . . . Fabricators . | . . . . . . Repair Stations . | . . . . . . Recycling Units . | . . . . . . Scanalyzers . | . . . . . . Garrison Access . | . . . . . . Total Hacks 11 | . 10 . 1 . . Successful 7 | . 6 . 1 . . Failed 4 | . 4 . . . . Catastrophic . | . . . . . . Database Lockouts . | . . . . . . Manual 1 | . . . 1 . . Terminals 10 | . 10 . . . . Fabricators . | . . . . . . Repair Stations . | . . . . . . Recycling Units . | . . . . . . Scanalyzers . | . . . . . . Garrison Access . | . . . . . . Terminal Hacks 7 | . 6 . 1 . . Record 1 | . 1 . . . . Prototype ID Bank 1 | . 1 . . . . Alert Level 1 | . 1 . . . . Locate Traps 1 | . 1 . . . . Transport Status 1 | . 1 . . . . Registered Prototypes 1 | . 1 . . . . Derelict Proto ID Bank 1 | . . . 1 . . Fabricator Hacks . | . . . . . . Repair Station Hacks . | . . . . . . Recycling Unit Hacks . | . . . . . . Scanalyzer . | . . . . . . Garrison Access Hacks . | . . . . . . Unauthorized Hacks . | . . . . . . Terminals . | . . . . . . Fabricators . | . . . . . . Repair Stations . | . . . . . . Recycling Units . | . . . . . . Scanalyzers . | . . . . . . Garrison Access . | . . . . . . Data Cores Recovered . | . . . . . . Used . | . . . . . . Hacking Detections 4 | . 4 . . . . Full Trace Events . | . . . . . . Feedback Events . | . . . . . . Feedback Blocked . | . . . . . . Robot Schematics Acquired . | . . . . . . Robots Built . | . . . . . . Authchips . | . . . . . . Time . | . . . . . . Total Robot Build Rating . | . . . . . . Part Schematics Acquired . | . . . . . . Parts Built . | . . . . . . Authchips . | . . . . . . Time . | . . . . . . Total Part Build Rating . | . . . . . . Parts Repaired . | . . . . . . Time . | . . . . . . Parts Recycled . | . . . . . . Recycled Matter . | . . . . . . Retrieved Matter . | . . . . . . Retrieved Components . | . . . . . . Parts Scanalyzed . | . . . . . . Part Schematics Acquired . | . . . . . . Parts Damaged . | . . . . . . Bothacking | -11 -10 -10 -10 -9 -8 ------------ Run | Yrd Mat Min Exi Min Mat Used RIF Installer . | . . . . . . Robots Hacked . | . . . . . . Non-combat . | . . . . . . Combat . | . . . . . . Robot Hacks Applied . | . . . . . . Relay Couplers Released . | . . . . . . Fabnet Peak Effective % . | . . . . . . Robots Rewired . | . . . . . . Allies Hacked . | . . . . . . Hacks Repelled . | . . . . . . Allies | -11 -10 -10 -10 -9 -8 -------- Run | Yrd Mat Min Exi Min Mat Total Allies . | . . . . . . Largest Group . | . . . . . . Highest-Rated Group . | . . . . . . Highest-Rated Ally . | . . . . . . Total Orders . | . . . . . . Ally Attacks . | . . . . . . Total Damage . | . . . . . . Kills . | . . . . . . Allies Corrupted . | . . . . . . Allies Melted . | . . . . . . Intel | -11 -10 -10 -10 -9 -8 ------- Run | Yrd Mat Min Exi Min Mat Robot Analysis Total . | . . . . . . Derelict Logs Recovered 2 | . . . . 2 . Drone Launches . | . . . . . . Drone Recoveries . | . . . . . . Exploration | -11 -10 -10 -10 -9 -8 ------------- Run | Yrd Mat Min Exi Min Mat Turns Passed 3481 | 83 1365 385 418 1015 215 Spaces Moved 1652 | 59 780 151 220 415 27 Core 7 | 3 . . . . 4 Treads . | . . . . . . Legs 1645 | 56 780 151 220 415 23 Wheels . | . . . . . . Hover . | . . . . . . Flight . | . . . . . . Fastest Speed 50 | 50 120 190 190 190 190 Average Speed 169 | 116 149 190 190 190 261 Slowest Speed 450 | 120 190 190 190 190 450 Overloaded Moves . | . . . . . . Propulsion Burnouts . | . . . . . . Robots Hopped . | . . . . . . Cave-ins Triggered . | . . . . . . Exploration Rate (%) 40 | 5 68 31 62 73 4 Regions Visited 5 Branch Regions 3 Pre-discovered Areas . | . . . . . . Known Exits Taken . | . . . . . . Unknown Exits Taken 5 | 1 1 1 1 1 . Scrap Searched 1 | . . . . 1 . Spaces Dug . | . . . . . . Terrain Destroyed 60 | . . 33 . 19 8 Melee . | . . . . . . Projectile . | . . . . . . AOE 60 | . . 33 . 19 8 Terrain Rammed . | . . . . . . Walls Destroyed . | . . . . . . Machines Disabled . | . . . . . . Actions | -11 -10 -10 -10 -9 -8 --------- Run | Yrd Mat Min Exi Min Mat Total 2179 | 71 908 219 221 637 123 Wait 368 | . 54 46 . 208 60 Move 1647 | 58 779 150 219 414 27 Hop . | . . . . . . Pick Up 26 | 5 15 1 1 3 1 Fast Attach 9 | 6 3 . . . . Attach 11 | . 2 1 . 2 6 Detach . | . . . . . . Swap 13 | . 6 3 . 2 2 Drop 18 | 2 9 1 1 5 . Fire 82 | . 40 16 . 3 23 Melee 4 | . . . . . 4 Ram . | . . . . . . Kick 1 | . . 1 . . . Crush . | . . . . . . Escape Stasis . | . . . . . . Rewire . | . . . . . . Trap . | . . . . . . Miscellaneous . | . . . . . . Route ------- -11/Scrapyard -10/Materials (discovered 3 exits: [*Mat x2] / [*Min]) -10/Mines -10/Exiles -9/Mines -8/Materials (discovered 1 exit: Fac) History --------- Turn | Location | Event 16 | -11/Scrapyard | Discovered new exit (range 15) 84 | -11/Scrapyard | Entered Materials 317 | -10/Materials | Build established: Mutant 436 | -10/Materials | Discovered new exit (range 8) 602 | -10/Materials | Discovered new exit (range 6) 779 | -10/Materials | Discovered new exit (range 15) 834 | -10/Materials | Build established: Scavenger-Mutant 1449 | -10/Materials | Entered Mines 1727 | -10/Mines | Core integrity fell below 50% 1825 | -10/Mines | Deemed a non-threat by the Exiles lab entrance 1827 | -10/Mines | Discovered new exit (range 5) 1834 | -10/Mines | Entered Exiles 1880 | -10/Exiles | Met 8R-AWN 1918 | -10/Exiles | Met EX-HEX 1973 | -10/Exiles | Met EX-BIN 2000 | -10/Exiles | Aligned with FarCom system 2002 | -10/Exiles | Given EX-Vault access code 2023 | -10/Exiles | Build established: Mutant 2047 | -10/Exiles | Opened EX-Vault 2057 | -10/Exiles | Found Cloak of Protection 2096 | -10/Exiles | Warned to stay clear of 0b10 Research branches 2153 | -10/Exiles | Met EX-DEC 2227 | -10/Exiles | Discovered new exit (range 14) 2252 | -10/Exiles | Left Exiles lab with Cloak of Protection 2252 | -10/Exiles | Entered Mines 2447 | -9/Mines | Learned 2 Materials zone layouts 2559 | -9/Mines | Build established: Skirmisher 2919 | -9/Mines | Learned location of 1 exit from Materials 2963 | -9/Mines | Found a damaged Exp. Sensor Array with a note attached 3246 | -9/Mines | Discovered new exit (range 8) 3267 | -9/Mines | Entered Materials 3267 | -8/Materials | Evolved 4 slots: Propulsion x2, Utility x2 3268 | -8/Materials | Identified exit to Factory 3465 | -8/Materials | Core integrity fell below 50% 3477 | -8/Materials | Core integrity fell below 20% 3482 | -8/Materials | Destroyed by G-47 Trooper with Particle Gun Last Messages --------------- 03454_ K-01 Serf collects debris. 03454_ Lgt. Assault Rifle destroyed. 03454_ K-01 Serf collects debris. 03455_ K-01 Serf destroyed. 03456_ Lgt. Ion Engine destroyed. 03458_ R-06 Scavenger collects Wheel. 03459_ K-01 Serf collects debris. 03459_ Acquired 3 matter. 03462_ K-01 Serf collects debris. 03464_ R-06 Scavenger collects Lgt. Ion Engine. 03465_ K-01 Serf collects debris. 03466_ Critical hit (Burn: +37). 03467_ R-06 Scavenger collects Lgt. Assault Rifle. 03468_ K-01 Serf destroyed. 03469_ Critical hit (Burn: +37). 03471_ R-06 Scavenger collects Lgt. Ion Engine. 03471_ G-50 Soldier knocked back. 03472_ Critical hit (Burn: +37). 03482_ Acquired Lgt. Nuclear Core. 03482_ Critical hit (Burn: +37). Map ----- +----------------------------------------------------+ | | | | | | | | | | | | | | | | | | | | | ?????????????????????????????????????????????????? | | ?????????????????????????#?#?????????????????????? | | ?????????????????????????#???????????????????????? | | ?????????????#???##??????????????????????????????? | | ????????????#?#?????????##???????#???????????????? | | ??????????????????????????#????????#?????????????? | | ?????????????????#?????????????????#??#??????????? | | ?????????#????#??????????????????????????????????? | | ????????????????#?????#####??????? ??????????????? | | ??????????????????????# #??"?"?????????????????? | | ??????????????????##### #??????????????????????? | | ??????????????????#]] #??????????????????????? | | ??????????????#???#]] ##????????#????????????? | | ??????????????????#// #??????????????????????? | | ??????????????????#// #??????????????????????? | | ?????????????????##!! @##?????????????????????? | | ????????Y?????????#!! % ######## ###??????????? | | ??????????????????#####% [[ ????????? | | ????????????????#???#?#g%%g %[ ????????? | | ??????????????????????#Y u %[ ????????? | | ??????????????????????#% ##############?????????? | | ??????????????????????# ##?????####????????????? | | ?????????ss???????????# ##?????????????????????? | | ?????????????????????? ??????????????????????? | | ???????????s?????????? ?????????????????????? | | ??? [ T ?????????????????????? | | ??? ????????????????????? | | ???###### ############ ###???????????????????? | | ??? ## #?????????####+###?????????????????????? | | ???""" ## #?????????# ?????????????????????? | | ???""" ## #?????????# """ ?????????????????????? | | ???""" ## #?????????# """ ?????????????????????? | | ??? ## #?????????# """ ?????????????????????? | | ??? ## #?????????# ?????????????????????? | | ??? ## #???####### ?????????????????????? | | ??? ## #???# ########?????????????????????? | | ???###### ###?# ?????????????????????? | | ??? # #?# ?????????????????????? | | ??? # ### ?????????????????????? | | ??? + ####### ?????????????????????? | +----------------------------------------------------+ Best States ------------- Heat Dissipation 31 Energy Generation 10 Energy Capacity 250 Matter Stores 300 Matter Capacity 300 Sight Range 16 Robot Scan Range 14 Terrain Scan Range 14 Terrain Scan Density 10 Evasion (%) 55 Item Schematics ----------------- None Robot Schematics ------------------ None Fabricated ------------ Nothing Alien Tech Used ----------------- None Achievements -------------- None Challenges ------------ None Game ------ Seed BattleBattleRefractor Manual? 0 Play Time 00:23:21 Cumulative 66.8 hours Start 2024.05.15 @ 21:56:44 End 2024.05.15 @ 22:20:27 Sessions 1 Manual Loads 0 Difficulty Rogue Special Mode None Game No. 57 Rogue 56 Adventurer 1 Explorer 0 Win Type - Total 1 Types 1/0/0/0/0/0/0/0/0 Lore% 26 Gallery% 42 Achievement% 31 Wizard Run 0 Options --------- Layout 0 ASCII 0 Keyboard 0 Movement Numpad Keybinds 0 Fullscreen 2 Font 18/SmallcapsGlow Map View 76x50 Zoom Use 0% Tactical HUD 1 Map Filters NONE Filters NONE Steam 1 RUN: b1377d9e-ff65-4335-8d2f-133b97159798